[Event "Early-Titled-Tuesday-Blitz-October-24-2023"]
[Site "Chess.com"]
[Date "2023.10.24"]
[Round "1"]
[White "wanyaland"]
[Black "GMSrinath"]
[Result "0-1"]
[WhiteElo "2462"]
[BlackElo "2834"]
[TimeControl "180+1"]
[EndTime "8:07:46 PDT"]
[Termination "GMSrinath won on time"]

1. d4 {[%clk 0:02:55.3]} 1... f5 {[%clk 0:02:52.3]} 2. g3 {[%clk 0:02:51.5]}
2... Nf6 {[%clk 0:02:48.4]} 3. Bg2 {[%clk 0:02:49.5]} 3... g6 {[%clk 0:02:41]}
4. c4 {[%clk 0:02:49]} 4... Bg7 {[%clk 0:02:38.9]} 5. Nc3 {[%clk 0:02:48.7]}
5... O-O {[%clk 0:02:39.4]} 6. Nf3 {[%clk 0:02:48.1]} 6... d6 {[%clk 0:02:25.4]}
7. Rb1 {[%clk 0:02:47.6]} 7... Nc6 {[%clk 0:02:22.1]} 8. b4 {[%clk 0:02:46.2]}
8... e5 {[%clk 0:02:20.4]} 9. b5 {[%clk 0:02:42.1]} 9... Nxd4 {[%clk 0:02:20]}
10. Nxd4 {[%clk 0:02:42]} 10... exd4 {[%clk 0:02:20.9]} 11. Qxd4 {[%clk
0:02:42]} 11... Kh8 {[%clk 0:02:21.6]} 12. Qd3 {[%clk 0:02:29.4]} 12... Rb8
{[%clk 0:02:17.7]} 13. O-O {[%clk 0:02:27]} 13... Ng4 {[%clk 0:02:13.5]} 14. Nd5
{[%clk 0:02:21.8]} 14... Ne5 {[%clk 0:02:11.2]} 15. Qc2 {[%clk 0:02:21.8]} 15...
Be6 {[%clk 0:02:09.8]} 16. Rd1 {[%clk 0:02:20.3]} 16... Qd7 {[%clk 0:02:00.5]}
17. c5 {[%clk 0:02:12.8]} 17... c6 {[%clk 0:01:46.1]} 18. Nf4 {[%clk 0:02:04.1]}
18... d5 {[%clk 0:01:45.8]} 19. e4 {[%clk 0:01:56.7]} 19... fxe4 {[%clk
0:01:44.6]} 20. Bxe4 {[%clk 0:01:56.7]} 20... Qf7 {[%clk 0:01:44.5]} 21. Nxe6
{[%clk 0:01:54.7]} 21... Qxe6 {[%clk 0:01:44.6]} 22. Bg2 {[%clk 0:01:54.5]}
22... Rbe8 {[%clk 0:01:41.3]} 23. bxc6 {[%clk 0:01:52.2]} 23... bxc6 {[%clk
0:01:42.2]} 24. Bf4 {[%clk 0:01:45.3]} 24... Nc4 {[%clk 0:01:38.9]} 25. Rb7
{[%clk 0:01:38]} 25... Re7 {[%clk 0:01:28.8]} 26. Rxe7 {[%clk 0:01:33.5]} 26...
Qxe7 {[%clk 0:01:29.7]} 27. h3 {[%clk 0:01:33.1]} 27... Qxc5 {[%clk 0:01:28.1]}
28. Rb1 {[%clk 0:01:30.6]} 28... Qe7 {[%clk 0:01:23.5]} 29. Bf1 {[%clk
0:01:23.9]} 29... Na3 {[%clk 0:01:19.3]} 30. Qc1 {[%clk 0:01:15]} 30... Nxb1
{[%clk 0:01:18.1]} 31. Qxb1 {[%clk 0:01:15.9]} 31... c5 {[%clk 0:01:09]} 32. Bg2
{[%clk 0:01:13.3]} 32... Qf7 {[%clk 0:01:04.3]} 33. Qc2 {[%clk 0:01:07.8]} 33...
c4 {[%clk 0:01:04]} 34. Bd6 {[%clk 0:00:59.8]} 34... Re8 {[%clk 0:00:57.2]} 35.
Bc5 {[%clk 0:00:58.6]} 35... d4 {[%clk 0:00:55.6]} 36. Qa4 {[%clk 0:00:51.7]}
36... d3 {[%clk 0:00:46.2]} 37. Be3 {[%clk 0:00:46.4]} 37... c3 {[%clk 0:00:42]}
38. Bf1 {[%clk 0:00:37.3]} 38... d2 {[%clk 0:00:39.5]} 39. Be2 {[%clk 0:00:37]}
39... Rb8 {[%clk 0:00:27.3]} 40. Kg2 {[%clk 0:00:36.1]} 40... Qd5+ {[%clk
0:00:26.1]} 41. Bf3 {[%clk 0:00:34.7]} 41... Qd3 {[%clk 0:00:24.2]} 42. Qxa7
{[%clk 0:00:31.1]} 42... Rf8 {[%clk 0:00:22.1]} 43. Bd1 {[%clk 0:00:21]} 43...
c2 {[%clk 0:00:19.4]} 44. Bxc2 {[%clk 0:00:20.7]} 44... Qxc2 {[%clk 0:00:20.3]}
0-1

[Event "Early-Titled-Tuesday-Blitz-October-24-2023"]
[Site "Chess.com"]
[Date "2023.10.24"]
[Round "1"]
[White "Magila31"]
[Black "Martial2008"]
[Result "1/2-1/2"]
[WhiteElo "2358"]
[BlackElo "2658"]
[TimeControl "180+1"]
[EndTime "8:07:47 PDT"]
[Termination "Game drawn by repetition"]

1. Nf3 {[%clk 0:02:59.2]} 1... Nf6 {[%clk 0:02:59.1]} 2. g3 {[%clk 0:02:58.5]}
2... d5 {[%clk 0:02:59]} 3. Bg2 {[%clk 0:02:58.5]} 3... Bg4 {[%clk 0:02:52.8]}
4. O-O {[%clk 0:02:57.5]} 4... Nbd7 {[%clk 0:02:49.9]} 5. d4 {[%clk 0:02:54.7]}
5... e6 {[%clk 0:02:47.1]} 6. Nbd2 {[%clk 0:02:49.7]} 6... Be7 {[%clk
0:02:46.3]} 7. b3 {[%clk 0:02:49.1]} 7... O-O {[%clk 0:02:46.1]} 8. Bb2 {[%clk
0:02:48.7]} 8... c6 {[%clk 0:02:46.3]} 9. c4 {[%clk 0:02:46.1]} 9... h6 {[%clk
0:02:44]} 10. Qc2 {[%clk 0:02:43.6]} 10... Bf5 {[%clk 0:02:43.9]} 11. Qc1 {[%clk
0:02:34.4]} 11... a5 {[%clk 0:02:43.6]} 12. Ba3 {[%clk 0:02:30.2]} 12... a4
{[%clk 0:02:40.9]} 13. Bxe7 {[%clk 0:02:25.3]} 13... Qxe7 {[%clk 0:02:41.8]} 14.
Qc3 {[%clk 0:02:19.2]} 14... Ne4 {[%clk 0:02:36.3]} 15. Nxe4 {[%clk 0:02:18]}
15... Bxe4 {[%clk 0:02:37.2]} 16. Nd2 {[%clk 0:02:10.7]} 16... Bxg2 {[%clk
0:02:36.6]} 17. Kxg2 {[%clk 0:02:11.1]} 17... Nf6 {[%clk 0:02:35.3]} 18. b4
{[%clk 0:02:02.9]} 18... Rfc8 {[%clk 0:02:16.8]} 19. Rab1 {[%clk 0:01:57.6]}
19... b5 {[%clk 0:02:16.4]} 20. c5 {[%clk 0:01:50.6]} 20... h5 {[%clk
0:02:15.7]} 21. h3 {[%clk 0:01:47]} 21... Re8 {[%clk 0:02:09.5]} 22. f4 {[%clk
0:01:38.9]} 22... Rad8 {[%clk 0:02:06.6]} 23. Qd3 {[%clk 0:01:36]} 23... g6
{[%clk 0:02:03.5]} 24. Rbe1 {[%clk 0:01:30.1]} 24... Kg7 {[%clk 0:02:03.1]} 25.
e4 {[%clk 0:01:27.8]} 25... dxe4 {[%clk 0:02:03]} 26. Nxe4 {[%clk 0:01:27.6]}
26... Nxe4 {[%clk 0:02:03.5]} 27. Rxe4 {[%clk 0:01:27.3]} 27... Rd5 {[%clk
0:02:04]} 28. a3 {[%clk 0:01:13.7]} 28... Red8 {[%clk 0:02:03.7]} 29. Qe3 {[%clk
0:01:12.5]} 29... Qf6 {[%clk 0:01:45.7]} 30. Rd1 {[%clk 0:01:11.3]} 30... Qf5
{[%clk 0:01:45.8]} 31. Rd2 {[%clk 0:01:08.5]} 31... Kf8 {[%clk 0:01:35]} 32. Rd3
{[%clk 0:00:48.7]} 32... Qf6 {[%clk 0:01:35.1]} 33. Re5 {[%clk 0:00:47.7]} 33...
Qe7 {[%clk 0:01:32.4]} 34. f5 {[%clk 0:00:28.8]} 34... gxf5 {[%clk 0:01:14.7]}
35. Rxd5 {[%clk 0:00:27.7]} 35... Rxd5 {[%clk 0:01:11.6]} 36. Qh6+ {[%clk
0:00:27.5]} 36... Kg8 {[%clk 0:01:08.7]} 37. Qxh5 {[%clk 0:00:22.6]} 37... Qf6
{[%clk 0:01:08.8]} 38. Qd1 {[%clk 0:00:19.8]} 38... Kf8 {[%clk 0:01:04.6]} 39.
Qd2 {[%clk 0:00:19.1]} 39... Ke8 {[%clk 0:01:00.2]} 40. Qf4 {[%clk 0:00:19.2]}
40... Qd8 {[%clk 0:00:54.6]} 41. h4 {[%clk 0:00:12.9]} 41... Qd7 {[%clk
0:00:47.9]} 42. h5 {[%clk 0:00:12.4]} 42... e5 {[%clk 0:00:48.2]} 43. Qg5 {[%clk
0:00:10.7]} 43... Rxd4 {[%clk 0:00:46.1]} 44. Rxd4 {[%clk 0:00:06.8]} 44... Qxd4
{[%clk 0:00:47]} 45. h6 {[%clk 0:00:06.1]} 45... e4 {[%clk 0:00:24.8]} 46. h7
{[%clk 0:00:04.3]} 46... Kd7 {[%clk 0:00:22.7]} 47. Qxf5+ {[%clk 0:00:02.5]}
47... Ke7 {[%clk 0:00:21.1]} 48. Qg5+ {[%clk 0:00:02.1]} 48... Kd7 {[%clk
0:00:18.3]} 49. Qf5+ {[%clk 0:00:02.1]} 49... Ke7 {[%clk 0:00:18.3]} 50. Qg5+
{[%clk 0:00:02.6]} 50... Kd7 {[%clk 0:00:13]} 51. Qf5+ {[%clk 0:00:03]} 1/2-1/2

[Event "Early-Titled-Tuesday-Blitz-October-24-2023"]
[Site "Chess.com"]
[Date "2023.10.24"]
[Round "1"]
[White "mary-sanna"]
[Black "zajka-molotok"]
[Result "0-1"]
[WhiteElo "2204"]
[BlackElo "2563"]
[TimeControl "180+1"]
[EndTime "8:07:48 PDT"]
[Termination "zajka-molotok won on time"]

1. d4 {[%clk 0:02:58.9]} 1... Nf6 {[%clk 0:02:56.6]} 2. c4 {[%clk 0:02:58]} 2...
e6 {[%clk 0:02:56.9]} 3. Nf3 {[%clk 0:02:58.1]} 3... c5 {[%clk 0:02:56.7]} 4. d5
{[%clk 0:02:58.1]} 4... d6 {[%clk 0:02:56.7]} 5. Nc3 {[%clk 0:02:57.8]} 5...
exd5 {[%clk 0:02:56.3]} 6. cxd5 {[%clk 0:02:58.5]} 6... g6 {[%clk 0:02:56.7]} 7.
h3 {[%clk 0:02:56.7]} 7... Bg7 {[%clk 0:02:53.6]} 8. e4 {[%clk 0:02:56.8]} 8...
a6 {[%clk 0:02:53.4]} 9. a4 {[%clk 0:02:56.6]} 9... O-O {[%clk 0:02:52.8]} 10.
Be2 {[%clk 0:02:56]} 10... Re8 {[%clk 0:02:50.6]} 11. Qc2 {[%clk 0:02:55.4]}
11... Nbd7 {[%clk 0:02:39.4]} 12. O-O {[%clk 0:02:54.8]} 12... Rb8 {[%clk
0:02:31.8]} 13. Bf4 {[%clk 0:02:52]} 13... Qe7 {[%clk 0:02:25.8]} 14. Rfe1
{[%clk 0:02:43.9]} 14... Nh5 {[%clk 0:01:59.1]} 15. Bg5 {[%clk 0:02:29.9]} 15...
Qf8 {[%clk 0:01:52.4]} 16. Bf1 {[%clk 0:02:21.3]} 16... h6 {[%clk 0:01:49.1]}
17. Bd2 {[%clk 0:02:20.6]} 17... Nhf6 {[%clk 0:01:44.1]} 18. Rab1 {[%clk
0:02:01.2]} 18... Ne5 {[%clk 0:01:25.6]} 19. Nxe5 {[%clk 0:01:58.3]} 19... Rxe5
{[%clk 0:01:19.4]} 20. Bf4 {[%clk 0:01:53.6]} 20... Re8 {[%clk 0:01:17.5]} 21.
Qd2 {[%clk 0:01:26.9]} 21... Kh7 {[%clk 0:01:04.7]} 22. e5 {[%clk 0:01:19.6]}
22... Nh5 {[%clk 0:01:00.5]} 23. exd6 {[%clk 0:01:16.7]} 23... Rxe1 {[%clk
0:00:58.1]} 24. Rxe1 {[%clk 0:01:15.9]} 24... Nxf4 {[%clk 0:00:56.4]} 25. Qxf4
{[%clk 0:01:15.7]} 25... g5 {[%clk 0:00:39.8]} 26. Bd3+ {[%clk 0:01:12.6]} 26...
Kg8 {[%clk 0:00:38.2]} 27. Qg3 {[%clk 0:00:56.2]} 27... Bd7 {[%clk 0:00:37.1]}
28. Re7 {[%clk 0:00:52.2]} 28... Rd8 {[%clk 0:00:35.9]} 29. Ne4 {[%clk
0:00:47.4]} 29... b6 {[%clk 0:00:30.7]} 30. Bxa6 {[%clk 0:00:37.5]} 30... f5
{[%clk 0:00:29.8]} 31. Nc3 {[%clk 0:00:23.1]} 31... f4 {[%clk 0:00:28.4]} 32.
Qd3 {[%clk 0:00:21.4]} 32... Bf5 {[%clk 0:00:26.4]} 33. Qe2 {[%clk 0:00:20.3]}
33... Bf6 {[%clk 0:00:20.5]} 34. Bb5 {[%clk 0:00:17.7]} 34... Bg6 {[%clk
0:00:20.1]} 35. Re6 {[%clk 0:00:10.2]} 35... Bf5 {[%clk 0:00:18.2]} 36. Re7
{[%clk 0:00:09.2]} 36... Bg6 {[%clk 0:00:16.8]} 37. Re6 {[%clk 0:00:07.5]} 37...
Rxd6 {[%clk 0:00:16.6]} 38. Rxd6 {[%clk 0:00:03.8]} 38... Qxd6 {[%clk 0:00:10]}
39. Bc6 {[%clk 0:00:04.3]} 39... Be5 {[%clk 0:00:09.3]} 40. Nb5 {[%clk
0:00:04.2]} 40... Qf6 {[%clk 0:00:08.4]} 41. Qd3 {[%clk 0:00:02.8]} 41... Bxd3
{[%clk 0:00:02]} 0-1

[Event "Early-Titled-Tuesday-Blitz-October-24-2023"]
[Site "Chess.com"]
[Date "2023.10.24"]
[Round "1"]
[White "RobertoJBM"]
[Black "slorovel"]
[Result "0-1"]
[WhiteElo "2797"]
[BlackElo "2463"]
[TimeControl "180+1"]
[EndTime "8:07:49 PDT"]
[Termination "slorovel won by resignation"]

1. d4 {[%clk 0:02:52.1]} 1... Nf6 {[%clk 0:02:58]} 2. c4 {[%clk 0:02:50.7]} 2...
e6 {[%clk 0:02:55.8]} 3. Nf3 {[%clk 0:02:50.2]} 3... d5 {[%clk 0:02:54.9]} 4.
Nc3 {[%clk 0:02:49.7]} 4... Bb4 {[%clk 0:02:54.4]} 5. Qa4+ {[%clk 0:02:48.6]}
5... Nc6 {[%clk 0:02:53.8]} 6. Bg5 {[%clk 0:02:48.5]} 6... O-O {[%clk
0:02:49.5]} 7. e3 {[%clk 0:02:46.7]} 7... Bd7 {[%clk 0:02:43]} 8. Qc2 {[%clk
0:02:43.6]} 8... h6 {[%clk 0:02:41.6]} 9. Bxf6 {[%clk 0:02:39.5]} 9... Qxf6
{[%clk 0:02:40.7]} 10. a3 {[%clk 0:02:39.6]} 10... Bxc3+ {[%clk 0:02:40.3]} 11.
Qxc3 {[%clk 0:02:39.9]} 11... Rfe8 {[%clk 0:02:32.5]} 12. Be2 {[%clk 0:02:39.8]}
12... dxc4 {[%clk 0:02:30.1]} 13. Bxc4 {[%clk 0:02:40.7]} 13... e5 {[%clk
0:02:28.7]} 14. d5 {[%clk 0:02:37.3]} 14... Nd4 {[%clk 0:02:15.9]} 15. Nd2
{[%clk 0:02:29.9]} 15... Nb5 {[%clk 0:02:10.6]} 16. Qc2 {[%clk 0:02:23.6]} 16...
Nd6 {[%clk 0:02:10]} 17. O-O {[%clk 0:02:21.2]} 17... a6 {[%clk 0:02:06.5]} 18.
Be2 {[%clk 0:02:16.6]} 18... Rac8 {[%clk 0:02:04.1]} 19. Rac1 {[%clk 0:02:15.5]}
19... e4 {[%clk 0:01:51.2]} 20. Nc4 {[%clk 0:02:11.8]} 20... Qg5 {[%clk
0:01:45.1]} 21. Rfd1 {[%clk 0:02:07]} 21... h5 {[%clk 0:01:41.6]} 22. Nxd6
{[%clk 0:02:01.6]} 22... cxd6 {[%clk 0:01:41.2]} 23. Qd2 {[%clk 0:02:01.2]}
23... h4 {[%clk 0:01:33.8]} 24. Qb4 {[%clk 0:01:48.5]} 24... h3 {[%clk
0:01:32.2]} 25. g3 {[%clk 0:01:48.6]} 25... Rxc1 {[%clk 0:01:21.3]} 26. Rxc1
{[%clk 0:01:48]} 26... Bg4 {[%clk 0:01:21.9]} 27. Bf1 {[%clk 0:01:44.5]} 27...
Qxd5 {[%clk 0:01:20.5]} 28. Rc2 {[%clk 0:01:33.4]} 28... Rc8 {[%clk 0:01:16.4]}
29. Rd2 {[%clk 0:01:30.9]} 29... Qe5 {[%clk 0:00:45.1]} 30. Rxd6 {[%clk
0:01:12.3]} 30... Rc1 {[%clk 0:00:33.6]} 31. Rd8+ {[%clk 0:01:10.2]} 31... Kh7
{[%clk 0:00:32.6]} 32. Qd2 {[%clk 0:01:09.8]} 32... Rd1 {[%clk 0:00:20.8]} 33.
Qxd1 {[%clk 0:00:49.8]} 33... Bxd1 {[%clk 0:00:21.7]} 34. Rxd1 {[%clk 0:00:50]}
34... Qxb2 {[%clk 0:00:22.1]} 35. a4 {[%clk 0:00:50.4]} 35... Qb3 {[%clk
0:00:20.2]} 36. Rd4 {[%clk 0:00:48.4]} 36... Qb1 {[%clk 0:00:20]} 37. a5 {[%clk
0:00:47.6]} 37... Qa1 {[%clk 0:00:19.3]} 38. Rb4 {[%clk 0:00:42.1]} 38... Qxa5
{[%clk 0:00:18.3]} 39. Rxb7 {[%clk 0:00:42.7]} 39... Qa1 {[%clk 0:00:18]} 40.
Rxf7 {[%clk 0:00:42.4]} 40... a5 {[%clk 0:00:18.4]} 41. f3 {[%clk 0:00:39.2]}
41... exf3 {[%clk 0:00:17.3]} 42. Rxf3 {[%clk 0:00:36.1]} 42... a4 {[%clk
0:00:17.6]} 43. Kf2 {[%clk 0:00:34.6]} 43... a3 {[%clk 0:00:17.4]} 44. g4 {[%clk
0:00:24.1]} 44... a2 {[%clk 0:00:11.5]} 45. Bd3+ {[%clk 0:00:24]} 45... Kg8
{[%clk 0:00:10.8]} 46. Bc4+ {[%clk 0:00:23.8]} 46... Kh7 {[%clk 0:00:10]} 47.
Bd3+ {[%clk 0:00:20.6]} 47... g6 {[%clk 0:00:10.2]} 48. Rf7+ {[%clk 0:00:17.3]}
48... Qg7 {[%clk 0:00:09.8]} 49. Rf3 {[%clk 0:00:11.7]} 49... a1=Q {[%clk
0:00:07.7]} 50. Rxh3+ {[%clk 0:00:12.1]} 50... Kg8 {[%clk 0:00:07.4]} 51. Bc4+
{[%clk 0:00:11.7]} 51... Qf7+ {[%clk 0:00:07.3]} 0-1

[Event "Early-Titled-Tuesday-Blitz-October-24-2023"]
[Site "Chess.com"]
[Date "2023.10.24"]
[Round "1"]
[White "Malev212"]
[Black "KorolDimitriy75"]
[Result "1-0"]
[WhiteElo "2657"]
[BlackElo "2338"]
[TimeControl "180+1"]
[EndTime "8:07:51 PDT"]
[Termination "Malev212 won on time"]

1. e4 {[%clk 0:02:59.6]} 1... c5 {[%clk 0:03:00.2]} 2. Nf3 {[%clk 0:02:58.3]}
2... d6 {[%clk 0:03:00.7]} 3. Bb5+ {[%clk 0:02:55.3]} 3... Nd7 {[%clk
0:02:58.9]} 4. Ba4 {[%clk 0:02:53.5]} 4... Nf6 {[%clk 0:02:58.4]} 5. Qe2 {[%clk
0:02:51]} 5... g6 {[%clk 0:02:58.3]} 6. O-O {[%clk 0:02:50.7]} 6... Bg7 {[%clk
0:02:58.1]} 7. c4 {[%clk 0:02:49.6]} 7... O-O {[%clk 0:02:57.6]} 8. Nc3 {[%clk
0:02:49.2]} 8... Nb8 {[%clk 0:02:29.7]} 9. d4 {[%clk 0:02:45.1]} 9... cxd4
{[%clk 0:02:29.1]} 10. Nxd4 {[%clk 0:02:42.9]} 10... Bd7 {[%clk 0:02:23.9]} 11.
Bxd7 {[%clk 0:02:40.1]} 11... Qxd7 {[%clk 0:02:23.4]} 12. Rd1 {[%clk 0:02:38.3]}
12... Nc6 {[%clk 0:02:20.8]} 13. Nxc6 {[%clk 0:02:29.5]} 13... Qxc6 {[%clk
0:02:17.3]} 14. Bg5 {[%clk 0:02:29.9]} 14... Rfe8 {[%clk 0:02:07.7]} 15. Rac1
{[%clk 0:02:27.4]} 15... h6 {[%clk 0:01:59.9]} 16. Bh4 {[%clk 0:02:24.2]} 16...
Rac8 {[%clk 0:01:52]} 17. b3 {[%clk 0:02:21.4]} 17... a6 {[%clk 0:01:44.1]} 18.
f3 {[%clk 0:02:02.2]} 18... Kh7 {[%clk 0:01:32.3]} 19. Bf2 {[%clk 0:01:54.6]}
19... Qc7 {[%clk 0:01:16]} 20. Be3 {[%clk 0:01:39.9]} 20... Qa5 {[%clk
0:01:15.2]} 21. Bd4 {[%clk 0:01:35]} 21... b5 {[%clk 0:00:37]} 22. c5 {[%clk
0:00:22.1]} 22... e5 {[%clk 0:00:29.7]} 23. Be3 {[%clk 0:00:16.7]} 23... dxc5
{[%clk 0:00:29.8]} 24. Nd5 {[%clk 0:00:14.7]} 24... Nxd5 {[%clk 0:00:26.9]} 25.
Rxd5 {[%clk 0:00:13.6]} 25... Qa3 {[%clk 0:00:14.1]} 26. Rdxc5 {[%clk
0:00:13.1]} 26... Rxc5 {[%clk 0:00:10.9]} 27. Rxc5 {[%clk 0:00:14]} 27... Rd8
{[%clk 0:00:09.7]} 28. Rc2 {[%clk 0:00:14.4]} 28... Rd7 {[%clk 0:00:08.3]} 29.
h4 {[%clk 0:00:13.9]} 29... h5 {[%clk 0:00:07.9]} 30. Bc5 {[%clk 0:00:12.5]}
30... Qa5 {[%clk 0:00:07.8]} 31. b4 {[%clk 0:00:11.9]} 31... Qd8 {[%clk
0:00:07.8]} 32. Qf2 {[%clk 0:00:09]} 32... Bf6 {[%clk 0:00:07.7]} 33. g3 {[%clk
0:00:08.1]} 33... Rd1+ {[%clk 0:00:07.7]} 34. Kg2 {[%clk 0:00:07.7]} 34... Qd3
{[%clk 0:00:07.6]} 35. Qe2 {[%clk 0:00:06.2]} 35... Qxe2+ {[%clk 0:00:05.6]} 36.
Rxe2 {[%clk 0:00:06]} 36... Ra1 {[%clk 0:00:06]} 37. Rd2 {[%clk 0:00:05.9]}
37... Kg7 {[%clk 0:00:05.8]} 38. f4 {[%clk 0:00:04.7]} 38... exf4 {[%clk
0:00:05]} 39. gxf4 {[%clk 0:00:04.6]} 39... Bc3 {[%clk 0:00:03.8]} 40. Rc2
{[%clk 0:00:02.6]} 40... Bf6 {[%clk 0:00:03.8]} 41. Kh3 {[%clk 0:00:01]} 41...
Rh1+ {[%clk 0:00:03.1]} 42. Kg3 {[%clk 0:00:01.9]} 42... Bxh4+ {[%clk
0:00:02.1]} 43. Kg2 {[%clk 0:00:02]} 43... Rb1 {[%clk 0:00:01.5]} 44. Bd4+
{[%clk 0:00:01.9]} 44... Bf6 {[%clk 0:00:01.7]} 45. e5 {[%clk 0:00:02.5]} 45...
Be7 {[%clk 0:00:01.5]} 46. Bc5 {[%clk 0:00:02.7]} 1-0

[Event "Early-Titled-Tuesday-Blitz-October-24-2023"]
[Site "Chess.com"]
[Date "2023.10.24"]
[Round "1"]
[White "Elprofessor21"]
[Black "vedantgoswami"]
[Result "0-1"]
[WhiteElo "2673"]
[BlackElo "2382"]
[TimeControl "180+1"]
[EndTime "8:07:53 PDT"]
[Termination "vedantgoswami won by resignation"]

1. b3 {[%clk 0:02:57.8]} 1... b6 {[%clk 0:02:55.4]} 2. Nf3 {[%clk 0:02:53.6]}
2... Bb7 {[%clk 0:02:54]} 3. g3 {[%clk 0:02:52.7]} 3... g6 {[%clk 0:02:50.4]} 4.
Bb2 {[%clk 0:02:51.8]} 4... Nf6 {[%clk 0:02:50.4]} 5. Bg2 {[%clk 0:02:52.1]}
5... Bg7 {[%clk 0:02:50.1]} 6. O-O {[%clk 0:02:52.2]} 6... O-O {[%clk
0:02:49.5]} 7. c4 {[%clk 0:02:47.7]} 7... c5 {[%clk 0:02:47.7]} 8. Nc3 {[%clk
0:02:44.4]} 8... d6 {[%clk 0:02:42.6]} 9. d4 {[%clk 0:02:39.1]} 9... cxd4 {[%clk
0:02:38.8]} 10. Nxd4 {[%clk 0:02:37.7]} 10... Bxg2 {[%clk 0:02:36.2]} 11. Kxg2
{[%clk 0:02:38.6]} 11... a6 {[%clk 0:02:35.7]} 12. f3 {[%clk 0:02:37.6]} 12...
d5 {[%clk 0:02:29.4]} 13. cxd5 {[%clk 0:02:19.3]} 13... Nxd5 {[%clk 0:02:27.2]}
14. Nxd5 {[%clk 0:02:15]} 14... Qxd5 {[%clk 0:02:25.9]} 15. Qd3 {[%clk
0:01:15.9]} 15... Rd8 {[%clk 0:02:19.6]} 16. Rad1 {[%clk 0:01:13.5]} 16... e5
{[%clk 0:01:44.2]} 17. Nc2 {[%clk 0:01:06.6]} 17... Qxd3 {[%clk 0:01:42.8]} 18.
exd3 {[%clk 0:01:03.8]} 18... Nc6 {[%clk 0:01:42]} 19. f4 {[%clk 0:00:55.6]}
19... exf4 {[%clk 0:01:37.8]} 20. Bxg7 {[%clk 0:00:54.9]} 20... Kxg7 {[%clk
0:01:35]} 21. Rxf4 {[%clk 0:00:55.1]} 21... Rac8 {[%clk 0:01:29.5]} 22. Rd2
{[%clk 0:00:42.3]} 22... Rd7 {[%clk 0:01:22.1]} 23. d4 {[%clk 0:00:37.3]} 23...
Rcd8 {[%clk 0:01:19.3]} 24. Rdf2 {[%clk 0:00:36.6]} 24... f5 {[%clk 0:01:15]}
25. g4 {[%clk 0:00:34.7]} 25... fxg4 {[%clk 0:01:11]} 26. Rxg4 {[%clk
0:00:29.7]} 26... Nxd4 {[%clk 0:01:09.2]} 27. Ne3 {[%clk 0:00:30]} 27... Re7
{[%clk 0:00:55.3]} 28. Rd2 {[%clk 0:00:14.7]} 28... Rxe3 {[%clk 0:00:49.1]} 29.
Rgxd4 {[%clk 0:00:14.9]} 29... Rxd4 {[%clk 0:00:42.8]} 30. Rxd4 {[%clk
0:00:15.8]} 30... Re2+ {[%clk 0:00:43.2]} 31. Kg3 {[%clk 0:00:16.4]} 31... Rxa2
{[%clk 0:00:42.9]} 32. Rd6 {[%clk 0:00:17.1]} 32... b5 {[%clk 0:00:41.8]} 33.
Rb6 {[%clk 0:00:17.1]} 33... Ra3 {[%clk 0:00:40.9]} 34. Kg4 {[%clk 0:00:15.3]}
34... Rxb3 {[%clk 0:00:35.3]} 35. Rxa6 {[%clk 0:00:14.8]} 35... Rb4+ {[%clk
0:00:33.3]} 36. Kg3 {[%clk 0:00:14.9]} 36... h5 {[%clk 0:00:30.8]} 37. Rb6
{[%clk 0:00:13.4]} 37... Kh6 {[%clk 0:00:28.2]} 38. Kh3 {[%clk 0:00:12.6]} 38...
Rb3+ {[%clk 0:00:27.8]} 39. Kg2 {[%clk 0:00:12.6]} 39... b4 {[%clk 0:00:27.4]}
40. Rb5 {[%clk 0:00:12.6]} 40... h4 {[%clk 0:00:26.7]} 41. Kg1 {[%clk
0:00:11.9]} 41... h3 {[%clk 0:00:26.2]} 42. Rb8 {[%clk 0:00:10.1]} 42... Kg5
{[%clk 0:00:25.1]} 43. Rb5+ {[%clk 0:00:09.7]} 43... Kg4 {[%clk 0:00:24.6]} 44.
Rb8 {[%clk 0:00:09.5]} 44... Rb1+ {[%clk 0:00:24.4]} 45. Kf2 {[%clk 0:00:09.1]}
45... Rb2+ {[%clk 0:00:24.4]} 46. Kg1 {[%clk 0:00:08.8]} 46... b3 {[%clk
0:00:24.4]} 47. Rc8 {[%clk 0:00:03.2]} 47... Rc2 {[%clk 0:00:20.5]} 48. Rb8
{[%clk 0:00:03]} 48... b2 {[%clk 0:00:20.6]} 49. Rb4+ {[%clk 0:00:03.7]} 49...
Kh5 {[%clk 0:00:19.6]} 50. Rb8 {[%clk 0:00:01.5]} 50... Rc1+ {[%clk 0:00:18.6]}
51. Kf2 {[%clk 0:00:02.4]} 51... b1=Q {[%clk 0:00:18.1]} 52. Rh8+ {[%clk
0:00:03.3]} 0-1